[Event "Titled Tuesday Blitz November 01 Late 2022"]
[White "Paravyan, David"]
[Black "Castellanos Gomez, Alejandro"]
[WhiteFideId "4194985"]
[BlackFideId "22284141"]
[WhiteElo "2555"]
[BlackElo "2168"]
[Result "1-0"]
[Round "01"]
[TimeControl "180+1"]
[Date "2022.11.01"]
[WhiteClock "0:00:49"]
[BlackClock "0:00:08"]

1. e4 {[%clk 0:02:58]}  e6 {[%clk 0:02:54]} 2. d4 {[%clk 0:02:57]}  d5 {[%clk 0:02:54]} 3. Nc3 {[%clk 0:02:58]}  Nf6 {[%clk 0:02:54]} 4. Bg5 {[%clk 0:02:57]}  Be7 {[%clk 0:02:53]} 5. e5 {[%clk 0:02:56]}  Nfd7 {[%clk 0:02:53]} 6. Bxe7 {[%clk 0:02:56]}  Qxe7 {[%clk 0:02:54]} 7. f4 {[%clk 0:02:56]}  O-O {[%clk 0:02:53]} 8. Nf3 {[%clk 0:02:47]}  c5 {[%clk 0:02:53]} 9. Nb5 {[%clk 0:02:46]}  Nc6 {[%clk 0:02:50]} 10. c3 {[%clk 0:02:46]}  a6 {[%clk 0:02:46]} 11. Nd6 {[%clk 0:02:45]}  f6 {[%clk 0:02:46]} 12. Bd3 {[%clk 0:02:31]}  fxe5 {[%clk 0:02:29]} 13. fxe5 {[%clk 0:02:32]}  cxd4 {[%clk 0:01:59]} 14. cxd4 {[%clk 0:02:33]}  Rxf3 {[%clk 0:00:35]} 15. Qxf3 {[%clk 0:02:31]}  Nxd4 {[%clk 0:00:28]} 16. Qh3 {[%clk 0:01:22]}  g6 {[%clk 0:00:24]} 17. O-O {[%clk 0:01:08]}  Nxe5 {[%clk 0:00:20]} 18. Nxc8 {[%clk 0:01:08]}  Rxc8 {[%clk 0:00:20]} 19. Rae1 {[%clk 0:01:08]}  Qd6 {[%clk 0:00:18]} 20. Kh1 {[%clk 0:00:56]}  Nxd3 {[%clk 0:00:18]} 21. Qxd3 {[%clk 0:00:56]}  e5 {[%clk 0:00:18]} 22. Qe3 {[%clk 0:00:53]}  Re8 {[%clk 0:00:18]} 23. Rf2 {[%clk 0:00:50]}  Nf5 {[%clk 0:00:14]} 24. Qg5 {[%clk 0:00:49]}  Qe7 {[%clk 0:00:14]} 25. Rxf5 {[%clk 0:00:49]}  Kg7 {[%clk 0:00:07]} 26. Qxe7+ {[%clk 0:00:48]}  Rxe7 {[%clk 0:00:08]} 27. Rfxe5 {[%clk 0:00:49]} 1-0


[Site "https://www.chess.com"]

[Event "Titled Tuesday Blitz November 01 Late 2022"]
[White "Petrova, Irina"]
[Black "Pakleza, Zbigniew"]
[WhiteFideId "14124122"]
[BlackFideId "1119290"]
[WhiteElo "2023"]
[BlackElo "2411"]
[Result "0-1"]
[Round "01"]
[TimeControl "180+1"]
[Date "2022.11.02"]
[WhiteClock "0:00:41"]
[BlackClock "0:01:04"]

1. e4 {[%clk 0:03:00]}  d6 {[%clk 0:03:00]} 2. d4 {[%clk 0:03:00]}  Nf6 {[%clk 0:03:01]} 3. Nc3 {[%clk 0:02:58]}  c6 {[%clk 0:03:01]} 4. Nf3 {[%clk 0:02:57]}  Bg4 {[%clk 0:03:01]} 5. h3 {[%clk 0:02:55]}  Bh5 {[%clk 0:03:01]} 6. Be3 {[%clk 0:02:54]}  e6 {[%clk 0:03:02]} 7. g4 {[%clk 0:02:54]}  Bg6 {[%clk 0:03:02]} 8. Bd3 {[%clk 0:02:53]}  d5 {[%clk 0:03:02]} 9. e5 {[%clk 0:02:53]}  Nfd7 {[%clk 0:03:02]} 10. h4 {[%clk 0:02:39]}  c5 {[%clk 0:03:02]} 11. h5 {[%clk 0:02:38]}  Bxd3 {[%clk 0:03:02]} 12. Qxd3 {[%clk 0:02:39]}  Nc6 {[%clk 0:03:03]} 13. O-O-O {[%clk 0:02:15]}  cxd4 {[%clk 0:03:01]} 14. Bxd4 {[%clk 0:02:12]}  Nxd4 {[%clk 0:02:59]} 15. Qxd4 {[%clk 0:02:12]}  Bc5 {[%clk 0:02:59]} 16. Qf4 {[%clk 0:02:07]}  h6 {[%clk 0:02:35]} 17. g5 {[%clk 0:01:56]}  Bxf2 {[%clk 0:02:20]} 18. gxh6 {[%clk 0:01:52]}  gxh6 {[%clk 0:02:19]} 19. Kb1 {[%clk 0:01:52]}  Qb6 {[%clk 0:02:10]} 20. Rhf1 {[%clk 0:01:44]}  Be3 {[%clk 0:02:07]} 21. Qa4 {[%clk 0:01:35]}  O-O-O {[%clk 0:01:48]} 22. Nb5 {[%clk 0:01:32]}  Nc5 {[%clk 0:01:49]} 23. Qa3 {[%clk 0:01:02]}  Qxb5 {[%clk 0:01:44]} 24. Qxe3 {[%clk 0:01:01]}  Ne4 {[%clk 0:01:30]} 25. Nd4 {[%clk 0:00:59]}  Qd7 {[%clk 0:01:30]} 26. c4 {[%clk 0:00:57]}  Kb8 {[%clk 0:01:15]} 27. Nb5 {[%clk 0:00:50]}  b6 {[%clk 0:01:11]} 28. cxd5 {[%clk 0:00:44]}  Qxb5 {[%clk 0:01:04]} 29. Qxe4 {[%clk 0:00:43]}  Rxd5 {[%clk 0:01:04]} 30. Rxd5 {[%clk 0:00:41]}  Qxf1+ {[%clk 0:01:04]} 0-1


[Site "https://www.chess.com"]

[Event "Titled Tuesday Blitz November 01 Late 2022"]
[White "Petrovic, Aleksa"]
[Black "Baskakov, Egor"]
[WhiteFideId "967629"]
[BlackFideId "24197866"]
[WhiteElo "2242"]
[BlackElo "2211"]
[Result "0-1"]
[Round "01"]
[TimeControl "180+1"]
[Date "2022.11.02"]
[WhiteClock "0:00:01"]
[BlackClock "0:01:01"]

1. d4 {[%clk 0:02:58]}  Nf6 {[%clk 0:02:58]} 2. c4 {[%clk 0:02:56]}  e6 {[%clk 0:02:59]} 3. Nf3 {[%clk 0:02:56]}  d5 {[%clk 0:03:00]} 4. Nc3 {[%clk 0:02:56]}  Ne4 {[%clk 0:03:00]} 5. e3 {[%clk 0:02:52]}  f5 {[%clk 0:03:00]} 6. Bd3 {[%clk 0:02:51]}  c6 {[%clk 0:03:00]} 7. O-O {[%clk 0:02:51]}  Be7 {[%clk 0:03:00]} 8. Ne2 {[%clk 0:02:49]}  O-O {[%clk 0:03:01]} 9. b3 {[%clk 0:02:49]}  Bd7 {[%clk 0:03:01]} 10. Ne5 {[%clk 0:02:46]}  Be8 {[%clk 0:03:01]} 11. f3 {[%clk 0:02:47]}  Nf6 {[%clk 0:02:58]} 12. Nf4 {[%clk 0:02:46]}  Qc8 {[%clk 0:02:58]} 13. Qc2 {[%clk 0:02:40]}  g5 {[%clk 0:02:58]} 14. Ne2 {[%clk 0:02:36]}  Nbd7 {[%clk 0:02:57]} 15. Bb2 {[%clk 0:02:32]}  Qd8 {[%clk 0:02:51]} 16. g4 {[%clk 0:02:05]}  Nxe5 {[%clk 0:02:35]} 17. dxe5 {[%clk 0:02:05]}  Ne4 {[%clk 0:02:35]} 18. Nd4 {[%clk 0:01:35]}  Nc5 {[%clk 0:02:33]} 19. gxf5 {[%clk 0:01:34]}  Nxd3 {[%clk 0:02:27]} 20. Qxd3 {[%clk 0:01:20]}  exf5 {[%clk 0:02:26]} 21. Ne6 {[%clk 0:01:18]}  dxc4 {[%clk 0:02:26]} 22. Qxc4 {[%clk 0:01:12]}  Bf7 {[%clk 0:02:25]} 23. Nxd8 {[%clk 0:01:06]}  Bxc4 {[%clk 0:02:23]} 24. bxc4 {[%clk 0:01:07]}  Raxd8 {[%clk 0:02:23]} 25. Rfd1 {[%clk 0:01:05]}  Kf7 {[%clk 0:02:17]} 26. Bd4 {[%clk 0:01:00]}  b6 {[%clk 0:02:15]} 27. a4 {[%clk 0:00:59]}  Bb4 {[%clk 0:02:11]} 28. Kf2 {[%clk 0:00:54]}  Ke6 {[%clk 0:02:10]} 29. Rab1 {[%clk 0:00:44]}  c5 {[%clk 0:02:07]} 30. Bb2 {[%clk 0:00:44]}  h5 {[%clk 0:02:07]} 31. Ke2 {[%clk 0:00:42]}  g4 {[%clk 0:02:06]} 32. f4 {[%clk 0:00:38]}  h4 {[%clk 0:02:05]} 33. e4 {[%clk 0:00:24]}  fxe4 {[%clk 0:01:57]} 34. Ke3 {[%clk 0:00:24]}  Kf5 {[%clk 0:01:31]} 35. Rd5 {[%clk 0:00:24]}  g3 {[%clk 0:01:27]} 36. hxg3 {[%clk 0:00:23]}  hxg3 {[%clk 0:01:28]} 37. Rg1 {[%clk 0:00:15]}  Rg8 {[%clk 0:01:28]} 38. e6+ {[%clk 0:00:08]}  Kxe6 {[%clk 0:01:27]} 39. Kxe4 {[%clk 0:00:08]}  Rde8 {[%clk 0:01:14]} 40. Re5+ {[%clk 0:00:08]}  Kf7 {[%clk 0:01:13]} 41. Rg2 {[%clk 0:00:07]}  Be1 {[%clk 0:01:11]} 42. Kd5 {[%clk 0:00:06]}  Rxe5+ {[%clk 0:01:09]} 43. fxe5 {[%clk 0:00:05]}  Bf2 {[%clk 0:01:09]} 44. e6+ {[%clk 0:00:04]}  Ke7 {[%clk 0:01:09]} 45. Bc1 {[%clk 0:00:04]}  Rg4 {[%clk 0:01:06]} 46. Kc6 {[%clk 0:00:03]}  Kxe6 {[%clk 0:01:05]} 47. Kb7 {[%clk 0:00:04]}  Rg7+ {[%clk 0:01:02]} 48. Ka6 {[%clk 0:00:04]}  Kf5 {[%clk 0:01:02]} 49. Bb2 {[%clk 0:00:04]}  Rd7 {[%clk 0:01:01]} 50. a5 {[%clk 0:00:03]}  bxa5 {[%clk 0:01:00]} 51. Kxa5 {[%clk 0:00:03]}  Ke4 {[%clk 0:01:01]} 52. Bc3 {[%clk 0:00:01]}  Kf3 {[%clk 0:01:01]} 0-1


[Site "https://www.chess.com"]

[Event "Titled Tuesday Blitz November 01 Late 2022"]
[White "Popilski, Gil"]
[Black "Dubov, Daniil"]
[WhiteFideId "2809060"]
[BlackFideId "24126055"]
[WhiteElo "2537"]
[BlackElo "2791"]
[Result "1-0"]
[Round "01"]
[TimeControl "180+1"]
[Date "2022.11.01"]
[WhiteClock "0:00:14"]
[BlackClock "0:00:19"]

1. e4 {[%clk 0:03:00]}  c6 {[%clk 0:02:59]} 2. d4 {[%clk 0:02:58]}  d5 {[%clk 0:02:59]} 3. exd5 {[%clk 0:02:58]}  cxd5 {[%clk 0:02:59]} 4. c4 {[%clk 0:02:59]}  Nf6 {[%clk 0:02:59]} 5. Nc3 {[%clk 0:02:58]}  g6 {[%clk 0:03:00]} 6. cxd5 {[%clk 0:02:57]}  Bg7 {[%clk 0:03:00]} 7. Qb3 {[%clk 0:02:57]}  O-O {[%clk 0:03:01]} 8. Be2 {[%clk 0:02:57]}  Na6 {[%clk 0:03:01]} 9. Bf3 {[%clk 0:02:56]}  e5 {[%clk 0:03:01]} 10. Nge2 {[%clk 0:02:32]}  exd4 {[%clk 0:02:55]} 11. Nxd4 {[%clk 0:02:33]}  Nc5 {[%clk 0:02:47]} 12. Qc4 {[%clk 0:02:31]}  Re8+ {[%clk 0:02:42]} 13. Be3 {[%clk 0:02:30]}  Ncd7 {[%clk 0:02:37]} 14. O-O {[%clk 0:02:26]}  Ne5 {[%clk 0:02:36]} 15. Qb3 {[%clk 0:02:26]}  Bg4 {[%clk 0:02:34]} 16. Bd1 {[%clk 0:02:20]}  Rc8 {[%clk 0:02:31]} 17. h3 {[%clk 0:02:17]}  Bxd1 {[%clk 0:02:28]} 18. Raxd1 {[%clk 0:02:16]}  Nc4 {[%clk 0:02:27]} 19. Bg5 {[%clk 0:02:10]}  h6 {[%clk 0:02:24]} 20. Bh4 {[%clk 0:02:07]}  Qd7 {[%clk 0:02:17]} 21. Nf3 {[%clk 0:02:02]}  Ne4 {[%clk 0:02:15]} 22. Rfe1 {[%clk 0:01:47]}  Nxc3 {[%clk 0:02:06]} 23. Rxe8+ {[%clk 0:01:46]}  Rxe8 {[%clk 0:01:56]} 24. bxc3 {[%clk 0:01:47]}  Re4 {[%clk 0:01:54]} 25. Bg3 {[%clk 0:01:42]}  Kh7 {[%clk 0:01:52]} 26. Nd2 {[%clk 0:01:35]}  Nxd2 {[%clk 0:01:49]} 27. Rxd2 {[%clk 0:01:36]}  Re1+ {[%clk 0:01:48]} 28. Kh2 {[%clk 0:01:36]}  h5 {[%clk 0:01:48]} 29. d6 {[%clk 0:01:28]}  Rc1 {[%clk 0:01:36]} 30. Qa3 {[%clk 0:01:20]}  Rxc3 {[%clk 0:01:31]} 31. Qxa7 {[%clk 0:01:19]}  Bf6 {[%clk 0:01:22]} 32. Qa5 {[%clk 0:01:06]}  b6 {[%clk 0:01:11]} 33. Qd5 {[%clk 0:01:03]}  h4 {[%clk 0:01:06]} 34. Bf4 {[%clk 0:00:51]}  Rc5 {[%clk 0:01:05]} 35. Qb3 {[%clk 0:00:47]}  Rf5 {[%clk 0:01:03]} 36. Qc4 {[%clk 0:00:38]}  Kg7 {[%clk 0:00:41]} 37. Qc7 {[%clk 0:00:35]}  Qe6 {[%clk 0:00:37]} 38. d7 {[%clk 0:00:30]}  Rxf4 {[%clk 0:00:37]} 39. Qxf4 {[%clk 0:00:24]}  Be5 {[%clk 0:00:36]} 40. Qxe5+ {[%clk 0:00:23]}  Qxe5+ {[%clk 0:00:36]} 41. g3 {[%clk 0:00:24]}  hxg3+ {[%clk 0:00:35]} 42. fxg3 {[%clk 0:00:24]}  Qe3 {[%clk 0:00:24]} 43. d8=Q {[%clk 0:00:24]}  Kh7 {[%clk 0:00:24]} 44. Qd4 {[%clk 0:00:22]}  Qe6 {[%clk 0:00:22]} 45. Rf2 {[%clk 0:00:20]}  Kg8 {[%clk 0:00:22]} 46. Qf6 {[%clk 0:00:17]}  Qc4 {[%clk 0:00:19]} 47. Qxb6 {[%clk 0:00:17]}  Kh7 {[%clk 0:00:19]} 48. Qf6 {[%clk 0:00:16]}  Kh6 {[%clk 0:00:19]} 49. Qh8+ {[%clk 0:00:14]}  Kg5 {[%clk 0:00:19]} 50. h4+ {[%clk 0:00:14]}  Kg4 {[%clk 0:00:19]} 51. Rf4+ {[%clk 0:00:14]} 1-0


[Site "https://www.chess.com"]

[Event "Titled Tuesday Blitz November 01 Late 2022"]
[White "Potapova, Margarita"]
[Black "Muradli, Mahammad"]
[WhiteFideId "14126869"]
[BlackFideId "13409301"]
[WhiteElo "2150"]
[BlackElo "2611"]
[Result "0-1"]
[Round "01"]
[TimeControl "180+1"]
[Date "2022.11.01"]
[WhiteClock "0:00:02"]
[BlackClock "0:00:03"]

1. d4 {[%clk 0:03:00]}  d6 {[%clk 0:02:51]} 2. Bf4 {[%clk 0:03:01]}  g6 {[%clk 0:02:51]} 3. Nf3 {[%clk 0:03:01]}  Bg7 {[%clk 0:02:52]} 4. e3 {[%clk 0:03:01]}  Nd7 {[%clk 0:02:52]} 5. h3 {[%clk 0:03:02]}  e5 {[%clk 0:02:53]} 6. Bh2 {[%clk 0:03:02]}  Ne7 {[%clk 0:02:53]} 7. Be2 {[%clk 0:03:02]}  O-O {[%clk 0:02:54]} 8. O-O {[%clk 0:03:03]}  c6 {[%clk 0:02:53]} 9. c3 {[%clk 0:02:59]}  e4 {[%clk 0:02:51]} 10. Nfd2 {[%clk 0:02:59]}  d5 {[%clk 0:02:52]} 11. c4 {[%clk 0:03:00]}  c5 {[%clk 0:02:47]} 12. cxd5 {[%clk 0:02:53]}  cxd4 {[%clk 0:02:39]} 13. exd4 {[%clk 0:02:54]}  Bxd4 {[%clk 0:02:35]} 14. Nc3 {[%clk 0:02:54]}  e3 {[%clk 0:02:33]} 15. fxe3 {[%clk 0:02:50]}  Bxe3+ {[%clk 0:02:33]} 16. Kh1 {[%clk 0:02:51]}  Nb6 {[%clk 0:02:29]} 17. Nc4 {[%clk 0:02:35]}  Nxc4 {[%clk 0:02:28]} 18. Bxc4 {[%clk 0:02:36]}  Nf5 {[%clk 0:02:29]} 19. Qf3 {[%clk 0:02:30]}  Bd4 {[%clk 0:02:14]} 20. Rae1 {[%clk 0:02:27]}  a6 {[%clk 0:02:11]} 21. Ne4 {[%clk 0:02:19]}  b5 {[%clk 0:02:09]} 22. Bb3 {[%clk 0:02:20]}  Bb7 {[%clk 0:02:06]} 23. d6 {[%clk 0:01:51]}  Ra7 {[%clk 0:01:52]} 24. g4 {[%clk 0:01:40]}  Nh4 {[%clk 0:01:51]} 25. Qf4 {[%clk 0:01:27]}  Kg7 {[%clk 0:01:37]} 26. Rd1 {[%clk 0:01:16]}  Bxb2 {[%clk 0:01:26]} 27. g5 {[%clk 0:00:54]}  Nf5 {[%clk 0:01:19]} 28. Kg1 {[%clk 0:00:52]}  Qb6+ {[%clk 0:01:13]} 29. Rf2 {[%clk 0:00:39]}  Ba8 {[%clk 0:00:58]} 30. Qe5+ {[%clk 0:00:19]}  Bxe5 {[%clk 0:00:56]} 31. Bxe5+ {[%clk 0:00:20]}  f6 {[%clk 0:00:56]} 32. Nxf6 {[%clk 0:00:19]}  Rxf6 {[%clk 0:00:13]} 33. Bxf6+ {[%clk 0:00:20]}  Kf8 {[%clk 0:00:14]} 34. d7 {[%clk 0:00:19]}  Rxd7 {[%clk 0:00:14]} 35. Rxd7 {[%clk 0:00:19]}  Ke8 {[%clk 0:00:15]} 36. Rd2 {[%clk 0:00:17]}  Qc5 {[%clk 0:00:09]} 37. Re2+ {[%clk 0:00:13]}  Kf8 {[%clk 0:00:04]} 38. Kf1 {[%clk 0:00:11]}  Ng3+ {[%clk 0:00:03]} 39. Ke1 {[%clk 0:00:10]}  Qc1+ {[%clk 0:00:03]} 40. Bd1 {[%clk 0:00:09]}  Nf5 {[%clk 0:00:04]} 41. Rc2 {[%clk 0:00:04]}  Qe3+ {[%clk 0:00:03]} 42. Rfe2 {[%clk 0:00:05]}  Qg1+ {[%clk 0:00:03]} 43. Kd2 {[%clk 0:00:06]}  Bb7 {[%clk 0:00:02]} 44. Rc7 {[%clk 0:00:04]}  Qb6 {[%clk 0:00:02]} 45. Rc2 {[%clk 0:00:04]}  Qd6+ {[%clk 0:00:02]} 46. Kc1 {[%clk 0:00:04]}  Qa3+ {[%clk 0:00:02]} 47. Bb2 {[%clk 0:00:04]}  Qd6 {[%clk 0:00:03]} 48. Red2 {[%clk 0:00:04]}  Qf4 {[%clk 0:00:03]} 49. Kb1 {[%clk 0:00:04]}  Be4 {[%clk 0:00:02]} 50. Bc1 {[%clk 0:00:01]}  Bxc2+ {[%clk 0:00:02]} 51. Bxc2 {[%clk 0:00:01]}  Qb4+ {[%clk 0:00:02]} 52. Ka1 {[%clk 0:00:02]}  Qc3+ {[%clk 0:00:03]} 53. Kb1 {[%clk 0:00:02]}  Ne3 {[%clk 0:00:03]} 0-1


[Site "https://www.chess.com"]

[Event "Titled Tuesday Blitz November 01 Late 2022"]
[White "Rasulov, Vugar"]
[Black "Ferreira, Vitor Hugo Vieira"]
[WhiteFideId "13402390"]
[BlackFideId "2119765"]
[WhiteElo "2509"]
[BlackElo "2168"]
[Result "1-0"]
[Round "01"]
[TimeControl "180+1"]
[Date "2022.11.02"]
[WhiteClock "0:02:52"]
[BlackClock "0:02:32"]

1. e4 {[%clk 0:03:00]}  c6 {[%clk 0:02:56]} 2. d4 {[%clk 0:02:59]}  d5 {[%clk 0:02:56]} 3. exd5 {[%clk 0:03:00]}  cxd5 {[%clk 0:02:56]} 4. Nf3 {[%clk 0:03:01]}  Nc6 {[%clk 0:02:56]} 5. Ne5 {[%clk 0:03:01]}  Nxe5 {[%clk 0:02:54]} 6. dxe5 {[%clk 0:03:02]}  e6 {[%clk 0:02:54]} 7. Bd3 {[%clk 0:03:01]}  Ne7 {[%clk 0:02:52]} 8. O-O {[%clk 0:03:01]}  Nc6 {[%clk 0:02:52]} 9. Re1 {[%clk 0:02:58]}  Be7 {[%clk 0:02:51]} 10. Qg4 {[%clk 0:02:57]}  g6 {[%clk 0:02:44]} 11. Bh6 {[%clk 0:02:56]}  Bf8 {[%clk 0:02:43]} 12. Bxf8 {[%clk 0:02:53]}  Kxf8 {[%clk 0:02:43]} 13. Nd2 {[%clk 0:02:53]}  Kg7 {[%clk 0:02:43]} 14. Nf3 {[%clk 0:02:53]}  Bd7 {[%clk 0:02:41]} 15. h4 {[%clk 0:02:53]}  h5 {[%clk 0:02:36]} 16. Qf4 {[%clk 0:02:52]}  Nb4 {[%clk 0:02:32]} 17. Qxb4 {[%clk 0:02:52]} 1-0


[Site "https://www.chess.com"]

[Event "Titled Tuesday Blitz November 01 Late 2022"]
[White "Richter, Paul"]
[Black "Floresvillar Gonzalez, Luis Migu"]
[WhiteFideId "2046350"]
[BlackFideId "5100542"]
[WhiteElo "2577"]
[BlackElo "2040"]
[Result "1-0"]
[Round "01"]
[TimeControl "180+1"]
[Date "2022.11.02"]
[WhiteClock "0:00:42"]
[BlackClock "0:00:19"]

1. e4 {[%clk 0:03:00]}  c6 {[%clk 0:02:58]} 2. Nc3 {[%clk 0:03:00]}  d5 {[%clk 0:02:57]} 3. Nf3 {[%clk 0:03:00]}  dxe4 {[%clk 0:02:53]} 4. Nxe4 {[%clk 0:03:01]}  Bg4 {[%clk 0:02:53]} 5. h3 {[%clk 0:03:01]}  Bxf3 {[%clk 0:02:51]} 6. Qxf3 {[%clk 0:03:01]}  Nf6 {[%clk 0:02:49]} 7. d3 {[%clk 0:02:56]}  Nxe4 {[%clk 0:02:48]} 8. dxe4 {[%clk 0:02:57]}  e6 {[%clk 0:02:46]} 9. Be3 {[%clk 0:02:35]}  Nd7 {[%clk 0:02:41]} 10. O-O-O {[%clk 0:02:26]}  Be7 {[%clk 0:02:34]} 11. Qg3 {[%clk 0:02:14]}  O-O {[%clk 0:02:30]} 12. Bd4 {[%clk 0:01:53]}  g6 {[%clk 0:02:08]} 13. h4 {[%clk 0:01:53]}  Qa5 {[%clk 0:01:50]} 14. Bc3 {[%clk 0:01:04]}  Qxa2 {[%clk 0:01:31]} 15. Rxd7 {[%clk 0:01:02]}  Rad8 {[%clk 0:01:22]} 16. Rd3 {[%clk 0:00:53]}  Rxd3 {[%clk 0:00:59]} 17. cxd3 {[%clk 0:00:52]}  Qa1+ {[%clk 0:00:52]} 18. Kc2 {[%clk 0:00:49]}  h5 {[%clk 0:00:45]} 19. Qe5 {[%clk 0:00:47]}  f6 {[%clk 0:00:33]} 20. Qxe6+ {[%clk 0:00:47]}  Rf7 {[%clk 0:00:33]} 21. d4 {[%clk 0:00:45]}  Kg7 {[%clk 0:00:19]} 22. Qxf7+ {[%clk 0:00:42]} 1-0


[Site "https://www.chess.com"]

[Event "Titled Tuesday Blitz November 01 Late 2022"]
[White "Rodriguez Fontecha, Marcos"]
[Black "Papasimakopoulos, Alexandros"]
[WhiteFideId "2256576"]
[BlackFideId "4244125"]
[WhiteElo "2263"]
[BlackElo "2357"]
[Result "0-1"]
[Round "01"]
[TimeControl "180+1"]
[Date "2022.11.02"]
[WhiteClock "0:00:04"]
[BlackClock "0:00:34"]

1. Nf3 {[%clk 0:02:57]}  d5 {[%clk 0:02:56]} 2. g3 {[%clk 0:02:57]}  Nc6 {[%clk 0:02:52]} 3. Bg2 {[%clk 0:02:57]}  e5 {[%clk 0:02:50]} 4. d3 {[%clk 0:02:58]}  Nf6 {[%clk 0:02:46]} 5. Nbd2 {[%clk 0:02:58]}  Be7 {[%clk 0:02:43]} 6. e4 {[%clk 0:02:58]}  O-O {[%clk 0:02:41]} 7. O-O {[%clk 0:02:58]}  Re8 {[%clk 0:02:39]} 8. Re1 {[%clk 0:02:58]}  dxe4 {[%clk 0:02:35]} 9. dxe4 {[%clk 0:02:57]}  h6 {[%clk 0:02:32]} 10. c3 {[%clk 0:02:57]}  Be6 {[%clk 0:02:29]} 11. Qc2 {[%clk 0:02:57]}  a5 {[%clk 0:02:25]} 12. b3 {[%clk 0:02:55]}  a4 {[%clk 0:02:24]} 13. bxa4 {[%clk 0:02:51]}  Ra7 {[%clk 0:02:18]} 14. Bf1 {[%clk 0:02:46]}  Bc5 {[%clk 0:01:46]} 15. Bb5 {[%clk 0:02:41]}  Ng4 {[%clk 0:01:46]} 16. Re2 {[%clk 0:02:33]}  Qf6 {[%clk 0:01:32]} 17. h3 {[%clk 0:02:18]}  Nxf2 {[%clk 0:01:32]} 18. Rxf2 {[%clk 0:02:19]}  Bxh3 {[%clk 0:01:32]} 19. Bf1 {[%clk 0:02:06]}  Bxf2+ {[%clk 0:01:28]} 20. Kxf2 {[%clk 0:02:06]}  Bxf1 {[%clk 0:01:25]} 21. Nxf1 {[%clk 0:01:59]}  Rea8 {[%clk 0:01:26]} 22. Kg2 {[%clk 0:01:52]}  Rxa4 {[%clk 0:01:26]} 23. Ne3 {[%clk 0:01:47]}  Ne7 {[%clk 0:01:23]} 24. a3 {[%clk 0:01:32]}  Qe6 {[%clk 0:01:09]} 25. Nd2 {[%clk 0:01:18]}  f6 {[%clk 0:01:05]} 26. Bb2 {[%clk 0:01:18]}  Kh8 {[%clk 0:01:04]} 27. Rd1 {[%clk 0:01:11]}  Qc6 {[%clk 0:01:02]} 28. Kh2 {[%clk 0:01:08]}  b5 {[%clk 0:01:02]} 29. Qb3 {[%clk 0:01:01]}  Rd8 {[%clk 0:00:56]} 30. Qc2 {[%clk 0:00:45]}  Rd7 {[%clk 0:00:50]} 31. Qb3 {[%clk 0:00:30]}  Qc5 {[%clk 0:00:50]} 32. Qe6 {[%clk 0:00:24]}  Qxe3 {[%clk 0:00:44]} 33. Qxd7 {[%clk 0:00:17]}  Qe2+ {[%clk 0:00:44]} 34. Kh3 {[%clk 0:00:17]}  Qxd1 {[%clk 0:00:44]} 35. Qxb5 {[%clk 0:00:09]}  h5 {[%clk 0:00:36]} 36. Qe8+ {[%clk 0:00:08]}  Kh7 {[%clk 0:00:35]} 37. Nf3 {[%clk 0:00:04]}  Qxf3 {[%clk 0:00:34]} 0-1


[Site "https://www.chess.com"]

[Event "Titled Tuesday Blitz November 01 Late 2022"]
[White "Sailer, Mike"]
[Black "Di Nicolantonio, Lucas"]
[WhiteFideId "2012901"]
[BlackFideId "680460"]
[WhiteElo "2109"]
[BlackElo "2381"]
[Result "0-1"]
[Round "01"]
[TimeControl "180+1"]
[Date "2022.11.02"]
[WhiteClock "0:00:47"]
[BlackClock "0:00:54"]

1. Nf3 {[%clk 0:02:59]}  g6 {[%clk 0:02:59]} 2. g3 {[%clk 0:02:55]}  Bg7 {[%clk 0:03:00]} 3. Bg2 {[%clk 0:02:56]}  d5 {[%clk 0:02:59]} 4. c4 {[%clk 0:02:56]}  dxc4 {[%clk 0:02:57]} 5. O-O {[%clk 0:02:54]}  Nc6 {[%clk 0:02:55]} 6. Na3 {[%clk 0:02:49]}  e5 {[%clk 0:02:53]} 7. Nxc4 {[%clk 0:02:48]}  Nge7 {[%clk 0:02:50]} 8. d3 {[%clk 0:02:47]}  O-O {[%clk 0:02:51]} 9. Bd2 {[%clk 0:02:39]}  Re8 {[%clk 0:02:45]} 10. Rc1 {[%clk 0:02:33]}  h6 {[%clk 0:02:44]} 11. b4 {[%clk 0:02:32]}  a6 {[%clk 0:02:42]} 12. a4 {[%clk 0:02:31]}  Nd5 {[%clk 0:02:31]} 13. b5 {[%clk 0:02:27]}  axb5 {[%clk 0:02:31]} 14. axb5 {[%clk 0:02:27]}  Nd4 {[%clk 0:02:32]} 15. e3 {[%clk 0:01:57]}  Nxb5 {[%clk 0:02:17]} 16. Qb3 {[%clk 0:01:50]}  c6 {[%clk 0:02:12]} 17. Ra1 {[%clk 0:01:33]}  Rxa1 {[%clk 0:01:54]} 18. Rxa1 {[%clk 0:01:33]}  e4 {[%clk 0:01:55]} 19. Nd4 {[%clk 0:01:34]}  Nxd4 {[%clk 0:01:47]} 20. exd4 {[%clk 0:01:33]}  Bxd4 {[%clk 0:01:48]} 21. Ra8 {[%clk 0:01:34]}  Qf6 {[%clk 0:01:38]} 22. Be3 {[%clk 0:01:13]}  exd3 {[%clk 0:01:19]} 23. Qxd3 {[%clk 0:01:12]}  Bxe3 {[%clk 0:01:15]} 24. Nxe3 {[%clk 0:01:12]}  Nxe3 {[%clk 0:01:14]} 25. fxe3 {[%clk 0:01:11]}  Rd8 {[%clk 0:01:11]} 26. Qb3 {[%clk 0:00:57]}  Be6 {[%clk 0:00:55]} 27. Rxd8+ {[%clk 0:00:56]}  Qxd8 {[%clk 0:00:56]} 28. Qxb7 {[%clk 0:00:57]}  Qd1+ {[%clk 0:00:56]} 29. Kf2 {[%clk 0:00:57]}  Qd2+ {[%clk 0:00:54]} 30. Kf1 {[%clk 0:00:49]}  Bc4+ {[%clk 0:00:53]} 31. Kg1 {[%clk 0:00:47]}  Qe1+ {[%clk 0:00:53]} 32. Bf1 {[%clk 0:00:47]}  Qxf1# {[%clk 0:00:54]} 0-1


[Site "https://www.chess.com"]